bitfinex-derivatives/quotes_ETHF0:USTF0_20210401
["timestamp","ask_amount","ask_price","bid_price","bid_amount"]
[1617313012066,87.97505,1960.6,1960.5,2.90695]
[1617313015669,87.97505,1960.6,1959.8,75.0296]
[1617313016270,85.0681,1960.6,1960.2,2.90695]
[1617313017472,85.0681,1960.6,1960.2,2.88695]
[1617313018274,2.90695,1960.3,1959.9,2.90695]
[1617313018473,2.90695,1960.3,1959.9,2.88695]
[1617313018676,2.90695,1960.3,1959.6,1.0192]
[1617313019476,82.4404,1960.0,1959.6,1.0192]
[1617313020378,82.4404,1960.0,1959.7,2.90695]
[1617313022578,82.4404,1960.0,1959.9,2.90695]
[1617313024778,7.09305,1959.9,1959.6,1.4064]
[1617313026383,7.09305,1959.9,1959.8,2.90695]
[1617313045609,7.09305,1959.9,1959.4,1.0296]
[1617313045909,7.09305,1959.9,1958.8,1.0301]
[1617313046909,7.09305,1959.9,1959.3,2.90695]
[1617313048909,2.90695,1959.4,1959.3,2.90695]
[1617313049110,4.42455,1959.4,1959.3,2.90695]
[1617313051313,4.42455,1959.4,1958.8,1.0301]
[1617313051513,4.42455,1959.4,1957.5,2.0]
[1617313051715,4.42455,1959.4,1956.5,1.0118]
[1617313051916,4.42455,1959.4,1957.1,3.0106]
[1617313052214,4.42455,1959.4,1957.1,1.0106]
[1617313053038,1.5176,1959.4,1957.1,1.0106]
[1617313054518,40.12635,1959.9,1957.1,1.0106]
[1617313054818,40.18398802,1959.9,1957.1,1.0106]
[1617313055120,4.01355,1958.5,1958.3,3.94285]
[1617313055821,4.01355,1958.5,1957.1,1.0106]
[1617313057022,4.01355,1958.5,1958.0,2.90695]
[1617313057323,4.01355,1958.5,1957.1,1.0106]
[1617313059134,4.01355,1958.5,1957.8,2.90695]
[1617313063235,4.01355,1958.5,1957.1,1.0106]
[1617313063837,30.0,1958.4,1957.1,1.0106]
[1617313064038,4.01355,1958.5,1957.1,1.0106]
[1617313064238,34.01355,1958.5,1957.1,1.0106]
[1617313065037,2.90695,1957.8,1957.3,2.90695]
[1617313065245,73.383,1957.7,1957.1,1.0106]
[1617313067138,2.90695,1957.2,1957.1,1.0106]
[1617313068641,2.90695,1957.2,1956.6,13.5379]
[1617313069045,2.90695,1956.7,1956.6,13.5379]
[1617313074451,2.90695,1956.7,1955.0,57.6073]
[1617313074452,83.3067,1955.8,1955.6,1.0105]
[1617313075151,2.90695,1955.7,1955.6,1.0105]
[1617313076955,2.90695,1955.7,1955.5,2.90695]
[1617313078157,2.90695,1955.7,1955.5,3.92375]
[1617313082964,2.90695,1955.7,1955.5,1.0168]
[1617313083164,4.31415,1955.7,1955.5,1.0168]
[1617313087267,4.31415,1955.7,1955.1,13.5332]
[1617313087467,64.0761,1955.5,1955.1,13.5332]
[1617313087867,4.31415,1955.7,1955.1,13.5332]
[1617313088069,64.0321,1955.2,1955.1,13.5332]
[1617313089468,66.93905,1955.2,1955.1,13.5332]
[1617313093975,2.90695,1955.2,1955.1,13.5332]
[1617313095375,2.90695,1955.4,1955.1,16.44015]
[1617313096173,1.1663,1956.3,1955.1,16.44015]
[1617313096373,1.5731,1956.7,1955.1,16.44015]
[1617313096575,2.55755784,1956.9,1955.1,16.44015]
[1617313097077,2.55755784,1956.9,1955.1,17.53675]
[1617313097277,2.90695,1956.6,1956.3,2.90695]
[1617313097878,94.4202,1958.0,1956.3,2.90695]
[1617313098679,16.7015,1958.6,1956.3,4.19525]
[1617313099081,2.0,1958.6,1956.3,4.19525]
[1617313099279,2.0,1958.5,1956.3,4.19525]
[1617313099579,77.7452,1958.0,1956.9,1.0071]
[1617313101382,77.7452,1958.0,1957.3,2.90695]
[1617313102783,14.9192,1958.7,1957.3,2.90695]
[1617313102984,16.9192,1958.7,1957.3,4.41855]
[1617313103387,16.9192,1958.7,1957.7,2.90695]
[1617313104685,14.9192,1958.7,1957.7,3.94765]
[1617313105485,80.7486,1958.9,1958.4,2.90695]
[1617313105686,80.7486,1958.9,1958.4,4.02365]
[1617313106088,13.8186,1959.7,1958.4,4.02365]
[1617313106787,79.9407,1959.0,1958.4,4.02365]
[1617313107487,79.9407,1959.0,1958.7,2.90695]
[1617313108291,13.8186,1959.7,1958.7,2.90695]
[1617313108593,13.8186,1959.7,1958.4,1.1167]
[1617313109494,13.8186,1959.7,1958.7,2.90695]
[1617313109692,13.8186,1959.7,1957.7,1.0407]
[1617313109897,13.8186,1959.7,1957.6,1.0301]
[1617313110193,64.0657,1959.2,1957.4,64.0657]
[1617313111498,64.0657,1959.2,1958.7,2.90695]
[1617313112796,64.0657,1959.2,1958.7,3.92865]
[1617313112996,64.0657,1959.2,1958.7,2.90695]
[1617313113402,64.0657,1959.2,1957.6,1.0229]
[1617313113596,2.90695,1958.8,1958.3,2.90695]
[1617313113997,2.90695,1958.8,1957.3,62.2937]
[1617313114299,3.99455,1958.8,1957.3,62.2937]
[1617313115498,1.0876,1958.8,1957.6,2.90695]
[1617313116198,1.0876,1958.8,1957.3,62.2937]
[1617313117500,1.0876,1958.8,1957.6,2.90695]
[1617313118701,2.1014,1958.8,1957.6,2.90695]
[1617313119101,2.1014,1958.8,1957.0,14.9078]
[1617313119102,63.2433,1958.1,1957.0,14.9078]
[1617313119301,64.4429,1958.1,1957.0,14.9078]
[1617313119703,64.4429,1958.1,1957.1,2.90695]
[1617313121605,2.90695,1957.2,1957.1,2.90695]
[1617313121810,3.91875,1957.2,1957.1,3.91735]
[1617313122909,3.91875,1957.2,1957.1,1.0104]
[1617313123510,3.91875,1957.2,1957.0,14.9078]
[1617313127211,3.91875,1957.2,1956.0,1.0209]
[1617313127410,3.91875,1957.2,1955.8,2.90695]
[1617313127711,4.12595,1955.9,1955.8,2.90695]
[1617313128109,4.12595,1955.9,1955.2,79.6138]
[1617313128909,4.12595,1955.9,1954.1,2.0]
[1617313129713,1.219,1955.9,1955.5,2.90695]
[1617313131713,2.90695,1955.6,1955.5,2.90695]
[1617313136415,2.90695,1955.6,1954.7,73.1691]
[1617313137818,1.219,1955.9,1955.0,2.90695]
[1617313138019,83.207,1956.0,1955.0,2.90695]
[1617313139725,31.0372,1956.4,1955.0,2.90695]
[1617313139925,2.90695,1955.1,1955.0,2.90695]
[1617313140124,4.30615,1955.1,1955.0,2.90695]
[1617313140925,4.30615,1955.1,1954.7,1.0]
[1617313141826,2.90695,1954.8,1954.7,1.0]
[1617313142725,71.2326,1954.7,1953.9,2.90695]
[1617313143026,72.7785,1954.7,1953.9,2.90695]
[1617313143226,1.5459,1954.7,1951.8,1.0299]
[1617313143427,1.5459,1954.7,1951.9,14.2099]
[1617313143428,70.0647,1953.4,1951.9,14.2099]
[1617313143628,1.423,1953.4,1951.9,14.2099]
[1617313144129,1.423,1953.4,1952.3,2.90695]
[1617313144329,1.423,1953.4,1951.9,14.2099]
[1617313144743,1.423,1953.4,1951.1,2.0]
[1617313144935,2.4342,1953.4,1951.1,2.0]
[1617313145134,32.0,1953.3,1951.1,2.0]
[1617313145932,2.90695,1951.2,1951.1,2.0]
[1617313146240,1.1457,1951.2,1951.1,2.0]
[1617313148032,4.05265,1951.2,1951.1,2.0]
[1617313151058,57.6297,1952.0,1951.1,3.3959]
[1617313151935,57.6297,1952.0,1951.9,2.90695]
[1617313152134,57.6297,1952.0,1951.9,4.37925]
[1617313152334,13.6136,1954.3,1951.9,4.37925]
[1617313152533,62.4112,1953.4,1951.9,4.37925]
[1617313153933,62.4112,1953.4,1953.0,2.90695]
[1617313154134,62.4112,1953.4,1953.0,4.55765]
[1617313154434,14.7475,1954.7,1953.0,4.55765]
[1617313154636,78.4426,1954.0,1953.0,4.55765]
[1617313154835,78.4426,1954.0,1953.0,1.99455953]
[1617313155034,95.2518,1955.0,1953.0,1.99455953]
[1617313155839,95.2518,1955.0,1953.0,3.03255953]
[1617313156036,95.2518,1955.0,1953.6,4.15775]
[1617313157741,95.2518,1955.0,1953.6,5.17565]
[1617313158041,95.2518,1955.0,1954.6,2.90695]
[1617313158341,95.2518,1955.0,1954.6,3.97755]
[1617313158549,14.9787,1956.1,1954.6,3.97755]
[1617313158855,14.9787,1956.1,1954.6,65.36815]
[1617313159250,14.9787,1956.1,1954.6,66.40635]
[1617313159854,64.7981,1955.6,1954.6,5.01575]
[1617313160044,64.7981,1955.6,1954.6,1.0706]
[1617313160045,2.90695,1954.7,1954.6,1.0706]
[1617313163347,2.90695,1954.7,1953.7,13.6258]
[1617313163648,65.39545,1954.7,1953.7,13.6258]
[1617313163947,2.90695,1954.7,1953.7,13.6258]
[1617313164147,2.90695,1954.7,1954.6,2.90695]
[1617313164348,2.90695,1954.7,1954.6,5.55295]
[1617313164548,2.90695,1954.7,1954.6,1.6228]
[1617313168153,14.9787,1956.1,1954.6,1.6228]
[1617313168154,14.9787,1956.1,1954.6,4.52975]
[1617313170158,14.9787,1956.1,1954.6,1.6228]
[1617313170358,14.9787,1956.1,1954.1,1.0325]
[1617313170559,14.9787,1956.1,1954.0,78.2115]
[1617313171167,14.9787,1956.1,1953.7,13.6258]
[1617313171659,30.0,1956.0,1953.7,13.6258]
[1617313171960,31.4173,1956.0,1953.7,13.6258]
[1617313172160,2.90695,1953.8,1953.7,13.6258]
[1617313174163,65.37645,1953.8,1953.7,13.6258]
[1617313180669,65.37645,1953.8,1952.5,1.3749]
[1617313182172,62.4695,1953.8,1953.3,2.90695]
[1617313182472,62.4695,1953.8,1953.1,1.2631]
[1617313182672,62.4695,1953.8,1953.1,2.2722]
[1617313184396,62.4695,1953.8,1953.5,1.0078]
[1617313186276,2.90695,1953.6,1953.5,1.0078]
[1617313188378,2.90695,1953.6,1953.5,3.91475]
[1617313190406,68.3192,1954.8,1953.5,3.91475]
[1617313192391,68.3192,1954.8,1954.5,3.95425]
[1617313194084,14.2944,1955.5,1954.5,3.95425]
[1617313194285,97.1755,1955.5,1954.5,3.95425]
[1617313194486,2.90695,1954.6,1954.5,3.95425]
[1617313198791,82.8811,1955.5,1954.5,3.95425]
[1617313199593,14.4562,1956.3,1954.5,3.95425]
[1617313200493,14.4562,1956.3,1955.2,4.22085]
[1617313200893,100.6413,1956.4,1955.2,4.22085]
[1617313201193,0.02852424,1957.1,1955.2,4.22085]
[1617313201392,14.7785322,1957.2,1955.2,4.22085]
[1617313201794,72.8608,1957.1,1955.6,72.8608]
[1617313202095,72.8608,1957.1,1955.6,74.2546]
[1617313202593,2.90695,1956.5,1956.2,4.42505]
[1617313203493,72.8608,1957.1,1956.2,4.42505]
[1617313204493,0.02857511,1957.9,1956.6,4.32285]
[1617313204696,0.02857862,1958.0,1956.6,4.32285]
[1617313205797,0.02857862,1958.0,1957.0,66.919]
[1617313205998,0.02857862,1958.0,1957.0,68.2657]
[1617313206397,2.90695,1957.1,1957.0,68.2657]
[1617313208504,2.90695,1957.1,1957.0,1.3467]
[1617313211410,2.90695,1957.1,1956.6,1.4159]
[1617313211611,2.90695,1957.1,1956.5,76.931]
[1617313212512,76.931,1957.5,1956.6,2.90695]
[1617313212711,76.931,1957.5,1956.6,4.41215]
[1617313213011,76.931,1957.5,1956.8,69.676]
[1617313214712,2.90695,1956.9,1956.8,69.676]
[1617313216920,2.90695,1956.9,1956.6,4.41215]
[1617313217620,2.90695,1956.9,1956.7,60.9418]
[1617313222824,2.90695,1956.9,1956.8,2.90695]
[1617313224031,2.39235,1956.9,1956.8,2.90695]
[1617313224231,2.584,1958.3,1956.8,2.90695]
[1617313224432,68.1566452,1958.5,1957.4,68.128]
[1617313224631,68.1566452,1958.5,1957.4,69.6528]
[1617313224931,68.128,1958.5,1957.6,2.90695]
[1617313226733,2.90695,1957.7,1957.6,2.90695]
[1617313228437,68.128,1958.5,1957.6,2.90695]
[1617313228838,2.90695,1958.4,1958.2,4.04145]
[1617313239350,2.90695,1958.4,1958.2,2.90695]
[1617313240152,2.90695,1958.4,1957.4,2.5535]
[1617313240352,2.90695,1958.4,1956.6,1.5052]
[1617313240551,2.90695,1958.4,1956.4,2.0]
[1617313240752,2.90695,1957.8,1957.6,2.90695]
[1617313241352,2.90695,1957.8,1957.6,3.92185]
[1617313241751,2.90695,1957.8,1957.0,76.2005]
[1617313242152,2.90695,1957.8,1955.7,16.5158]
[1617313242553,2.90695,1957.8,1955.7,2.0]
[1617313242754,1.5213,1958.3,1956.9,2.90695]
[1617313244157,1.4424,1958.7,1956.9,2.90695]
[1617313244757,2.90695,1957.3,1957.1,2.90695]
[1617313245759,2.90695,1957.3,1957.1,3.92825]
[1617313246161,2.90695,1957.3,1957.1,2.90695]
[1617313246362,32.0,1959.1,1957.1,2.90695]
[1617313246562,75.6746,1958.4,1957.3,75.6746]
[1617313246861,2.90695,1957.4,1957.3,78.58155]
[1617313247061,2.90695,1957.4,1957.3,2.90695]
[1617313248765,2.90695,1957.4,1957.1,3.92305]
[1617313250463,1.98195,1957.4,1957.1,3.92305]
[1617313250764,2.90695,1957.2,1957.1,3.92305]
[1617313250964,2.90695,1957.2,1957.1,2.90695]
[1617313253680,59.2444,1957.3,1957.1,2.90695]
[1617313254879,2.90695,1957.2,1957.1,2.90695]
[1617313257283,59.2444,1957.3,1957.1,2.90695]
[1617313258986,2.90695,1957.2,1957.1,2.90695]
[1617313261792,2.90695,1957.2,1957.1,85.50225]
[1617313263593,113.8453,1958.8,1957.1,5.09505]
[1617313264893,113.8453,1958.8,1958.2,2.90695]
[1617313265093,32.584,1959.6,1958.2,3.92425]
[1617313265295,78.8964,1959.0,1958.3,78.8964]
[1617313266900,78.8964,1959.0,1958.6,2.90695]
[1617313267099,78.8964,1959.0,1958.6,4.08945]
[1617313268906,2.90695,1958.7,1958.6,4.08945]
[1617313269307,2.90695,1958.7,1958.6,1.1825]
[1617313272509,2.90695,1958.7,1958.5,2.90695]
[1617313273810,2.90695,1958.7,1958.5,79.83155]
[1617313276717,78.8964,1959.0,1958.5,79.83155]
[1617313276914,78.8964,1959.0,1958.9,2.90695]
[1617313277113,78.8964,1959.0,1958.9,4.46615]
[1617313277314,2.90695,1959.2,1958.9,4.46615]
[1617313278514,2.90695,1959.2,1958.9,5.49285]
[1617313279013,2.90695,1959.0,1958.9,5.49285]
[1617313279313,2.90695,1959.0,1958.9,4.46615]
[1617313284319,2.90695,1959.0,1958.9,5.48745]
[1617313284522,2.90695,1959.0,1958.9,4.46615]
[1617313286622,2.90695,1959.0,1958.9,5.48945]
[1617313289227,2.90695,1959.2,1958.9,78.82775]
[1617313289426,2.90695,1959.2,1958.9,77.80445]
[1617313291230,2.90695,1959.2,1959.1,2.90695]
[1617313293630,2.90695,1959.2,1959.1,73.70415]
[1617313296635,2.90695,1959.2,1959.1,2.90695]
[1617313301237,2.82965,1959.2,1959.1,2.90695]
[1617313309748,79.29105,1959.2,1959.1,2.90695]
[1617313310848,76.4614,1959.2,1958.6,61.1629]
[1617313311650,79.36835,1959.2,1959.1,2.90695]
[1617313313053,79.08125,1959.2,1959.1,2.90695]
[1617313323168,76.1743,1959.2,1958.9,1.0347]
[1617313323969,79.08125,1959.2,1959.1,2.90695]
[1617313326876,78.91275,1959.2,1959.1,2.90695]
[1617313328389,78.91275,1959.2,1959.1,4.51265]
[1617313331183,2.90695,1959.2,1959.1,4.51265]
[1617313331984,2.90695,1959.2,1959.1,64.46045]
[1617313332585,2.90695,1959.2,1959.1,61.5535]
[1617313337191,2.82665,1959.2,1959.1,61.5535]
[1617313338492,62.3274,1959.7,1959.1,61.5535]
[1617313340492,62.3274,1959.7,1959.4,2.90695]
[1617313341492,61.6886,1959.7,1959.4,2.90695]
[1617313341994,61.6033,1959.7,1959.4,2.90695]
[1617313342594,2.90695,1959.5,1959.4,2.90695]
[1617313342896,2.90695,1959.5,1959.4,3.91915]
[1617313343097,2.80405,1959.5,1959.4,3.91915]
[1617313345200,7.09305,1959.9,1959.4,3.91915]
[1617313346000,1.0,1959.8,1959.4,3.91915]
[1617313346699,3.90695,1959.8,1959.7,4.21775]
[1617313346900,3.82025,1959.8,1959.7,4.21775]
[1617313347401,0.9133,1959.8,1959.7,4.21775]
[1617313347602,0.6593,1959.8,1959.7,4.21775]
[1617313349004,0.1487,1959.8,1959.7,4.21775]
[1617313351505,7.02665,1959.9,1959.7,4.21775]
[1617313352704,5.98075,1959.9,1959.7,4.21775]
[1617313353105,5.58925,1959.9,1959.7,4.21775]
[1617313353604,5.58925,1959.9,1959.7,2.90695]
[1617313353804,5.32665,1959.9,1959.7,2.90695]
[1617313354108,5.20765,1959.9,1954.3,11.9168608]
[1617313354507,5.20765,1959.9,1959.6,2.90695]
[1617313356609,2.90695,1959.7,1959.6,2.90695]
[1617313357310,5.20765,1959.9,1959.6,2.90695]
[1617313358709,2.90695,1959.7,1959.6,2.90695]
[1617313367316,5.20765,1959.9,1959.6,2.90695]
[1617313367516,5.20765,1959.9,1959.6,4.55945]
[1617313368824,5.20765,1959.9,1959.8,2.90695]
[1617313372423,4.14035,1959.9,1959.8,2.90695]
[1617313374226,3.83725,1959.9,1959.8,2.90695]
[1617313374733,0.80465,1959.9,1959.8,2.90695]
[1617313376033,2.90695,1960.5,1959.8,2.90695]
[1617313376332,57.55337294,1961.0,1959.8,2.90695]
[1617313376529,57.5245,1961.0,1960.9,64.9185]
[1617313376734,57.5245,1961.0,1960.9,66.01]
[1617313377029,60.43145,1961.0,1960.9,68.91695]
[1617313379659,60.43145,1961.0,1960.9,3.99845]
[1617313380336,57.5245,1961.0,1960.9,3.99845]
[1617313380733,0.02892679,1961.6,1960.9,3.99845]
[1617313380934,0.02892679,1961.6,1961.3,2.90695]
[1617313381133,0.02892679,1961.6,1961.3,4.13445]
[1617313381635,0.08678788,1961.7,1961.3,4.13445]
[1617313381834,0.0289343,1961.7,1961.3,4.13445]
[1617313383140,2.90695,1961.4,1961.3,4.13445]
[1617313394955,59.2122,1962.3,1961.2,1.0237]
[1617313395357,59.2122,1962.3,1961.8,60.2535]
[1617313397463,2.90695,1961.9,1961.8,60.2535]
[1617313398962,2.90695,1961.9,1961.5,1.4002]
[1617313399163,2.90695,1961.9,1960.9,14.7483]
[1617313399363,2.90695,1961.0,1960.9,14.7483]
[1617313399574,2.90695,1961.0,1959.3,2.0]
[1617313399778,32.90695,1961.0,1959.3,2.0]
[1617313399977,32.90695,1961.0,1958.8,14.1095]
[1617313400265,4.584,1960.9,1958.8,14.1095]
[1617313400465,31.2705,1960.8,1958.8,14.1095]
[1617313400664,33.2705,1960.8,1958.8,14.1095]
[1617313401471,4.20235,1958.9,1958.8,14.1095]
[1617313402066,34.20235,1958.9,1958.8,14.1095]
[1617313402268,36.20235,1958.9,1958.8,14.1095]
[1617313402697,36.20235,1958.9,1957.8,61.8592]
[1617313403467,4.33805,1957.9,1957.4,2.90695]
[1617313403669,77.26555,1957.9,1957.4,2.90695]
[1617313404969,77.26555,1957.9,1957.3,72.9275]
[1617313405370,2.90695,1957.4,1957.3,72.9275]
[1617313405571,4.54465,1957.4,1957.3,72.9275]
[1617313407073,4.54465,1957.4,1957.1,3.92825]
[1617313407275,4.54465,1957.4,1957.1,2.90695]
[1617313407474,4.54465,1957.4,1957.3,78.60625]
[1617313407674,2.90695,1957.4,1957.3,78.60625]
[1617313408576,72.9275,1957.9,1957.3,78.60625]
[1617313408774,90.5548,1958.8,1957.3,2.90695]
[1617313408976,88.5548,1958.8,1957.3,2.90695]
[1617313409574,88.5548,1958.8,1958.4,2.90695]
[1617313409978,88.5548,1958.8,1957.1,2.3957]
[1617313409979,88.5548,1958.8,1957.1,1.0371]
[1617313410177,89.7233,1958.8,1957.1,1.0371]
[1617313410676,1.1685,1958.8,1957.1,1.0371]
[1617313410876,79.334,1958.4,1957.4,79.334]
[1617313411076,80.5484,1958.4,1957.4,79.334]
[1617313411277,1.2144,1958.4,1957.1,1.0371]
[1617313411480,1.2144,1958.4,1958.0,2.90695]
[1617313413478,2.90695,1958.1,1957.1,1.0371]
[1617313413680,1.2144,1958.4,1957.1,1.0371]
[1617313415480,72.5113,1958.4,1958.3,2.90695]
[1617313416584,1.2144,1958.4,1958.3,2.90695]
[1617313416782,1.1685,1958.8,1958.3,2.90695]
[1617313416981,44.519,1959.6,1957.7,1.0122]
[1617313417183,1.4869,1958.8,1957.1,1.0371]
[1617313417483,2.90695,1958.3,1958.1,2.90695]
[1617313417682,2.90695,1958.3,1957.1,1.0371]
[1617313419587,1.0751,1958.4,1957.6,2.90695]
[1617313419588,79.7369,1958.1,1957.6,2.90695]
[1617313419787,79.7369,1958.1,1957.3,79.7369]
[1617313421590,79.7369,1958.1,1957.5,2.90695]
[1617313423693,79.7369,1958.1,1957.9,2.90695]
[1617313424692,79.7369,1958.1,1957.1,1.0371]
[1617313424993,79.7369,1958.1,1957.4,61.9814]
[1617313425594,79.7369,1958.1,1957.8,2.90695]
[1617313427597,2.90695,1957.9,1957.8,2.90695]
[1617313436107,4.20085,1957.9,1957.8,2.90695]
[1617313437809,4.20085,1957.9,1957.8,3.91745]
[1617313438009,4.20085,1957.9,1957.8,2.90695]
[1617313438210,19.20085,1957.9,1957.8,2.90695]
[1617313443617,16.2939,1957.9,1957.8,2.90695]
[1617313444721,15.3039,1957.9,1957.8,2.90695]
[1617313447724,14.7641,1957.9,1957.8,2.90695]
[1617313448325,14.5542,1957.9,1957.8,2.90695]
[1617313453630,13.7976,1957.9,1957.8,2.90695]
[1617313456132,16.70455,1957.9,1957.8,2.90695]
[1617313457034,15.92525,1957.9,1957.8,2.90695]
[1617313457236,15.59095,1957.9,1957.8,2.90695]
[1617313466546,15.59095,1957.9,1957.8,83.55885]
[1617313468847,15.59095,1957.9,1957.8,84.59225]
[1617313470146,15.59095,1957.9,1957.8,83.55885]
[1617313470551,15.59095,1957.9,1957.8,82.22945]
[1617313470748,15.59095,1957.9,1957.8,2.90695]
[1617313471151,15.59095,1957.9,1957.8,3.93825]
[1617313471350,15.59095,1957.9,1957.8,2.90695]
[1617313472451,15.59095,1957.9,1957.1,1.0371]
[1617313472651,15.59095,1957.9,1956.2,2.0]
[1617313472652,45.59095,1957.9,1956.2,2.0]
[1617313472952,45.59095,1957.9,1955.9,1.0337]
[1617313473353,47.59095,1957.9,1955.9,1.0337]
[1617313474353,82.6672,1956.8,1956.6,2.90695]
[1617313476356,2.90695,1956.7,1956.6,2.90695]
[1617313479963,2.90695,1956.7,1956.3,79.8389]
[1617313480366,2.90695,1956.4,1956.2,2.90695]
[1617313480567,4.19395,1956.4,1956.2,2.90695]
[1617313481465,4.19395,1956.4,1955.3,1.008]
[1617313482468,2.90695,1956.2,1955.5,2.90695]
[1617313483070,32.90695,1956.2,1955.5,2.90695]
[1617313484480,4.04145,1955.6,1955.5,3.92385]
[1617313485074,34.04145,1955.6,1954.4,13.684]
[1617313486377,64.0273,1954.8,1954.4,13.684]
[1617313486577,64.0273,1954.8,1954.6,2.90695]
[1617313486779,64.0273,1954.8,1954.4,13.684]
[1617313488479,1.1161,1954.8,1954.4,13.684]
[1617313488779,73.4122,1954.6,1954.4,13.684]
[1617313489080,73.4122,1954.6,1954.1,1.0]
[1617313489081,30.0,1954.5,1954.1,1.0]
[1617313490481,2.90695,1954.2,1954.1,1.0]
[1617313490882,4.40715,1954.2,1954.1,1.0]
[1617313491081,4.40715,1954.2,1953.8,2.90695]
[1617313491581,4.40715,1954.2,1954.1,1.0]
[1617313491882,4.40715,1954.2,1952.9,1.0084]
[1617313492183,4.40715,1954.2,1952.8,14.9142]
[1617313492483,79.2828,1953.2,1953.1,2.90695]
[1617313494784,82.18975,1953.2,1953.1,2.90695]
[1617313495185,3.91735,1953.2,1953.1,2.90695]
[1617313495387,2.90695,1953.2,1953.1,2.90695]
[1617313497090,82.90685,1953.2,1953.1,2.90695]
[1617313498190,84.32445,1953.2,1952.8,14.9142]
[1617313498592,81.4175,1953.2,1953.0,2.90695]
[1617313498791,81.4175,1953.2,1952.8,14.9142]
[1617313499192,79.9999,1953.2,1952.8,14.9142]
[1617313500595,79.9999,1953.2,1953.0,2.90695]
[1617313500797,79.9999,1953.2,1953.0,3.93125]
[1617313501306,79.9999,1953.2,1953.0,66.98015]
[1617313501499,62.7748,1954.2,1953.2,62.7748]
[1617313501699,61.7536,1954.2,1953.2,62.7748]
[1617313502110,60.4767,1954.2,1953.2,62.7748]
[1617313502318,1.1345,1955.6,1953.0,5.29195]
[1617313502501,77.4785,1955.1,1954.1,77.4785]
[1617313502703,77.4785,1955.1,1954.1,78.5137]
[1617313502933,15.2647,1956.4,1954.1,2.0698]
[1617313503403,14.2382,1956.4,1954.1,2.0698]
[1617313504103,14.0637,1957.1,1954.1,2.0698]
[1617313504803,2.90695,1956.6,1956.1,4.14715]
[1617313505706,2.90695,1956.6,1956.5,74.2885]
[1617313508107,72.9231,1957.3,1956.5,74.2885]
[1617313508327,14.7785,1958.2,1956.5,1.3654]
[1617313508710,2.90695,1957.4,1956.6,2.90695]
[1617313508917,14.8488,1956.7,1956.6,2.90695]
[1617313509312,13.5574,1956.7,1956.6,2.90695]
[1617313509613,14.4696,1959.0,1956.6,2.90695]
[1617313509810,99.4576,1959.1,1956.6,2.90695]
[1617313510010,14.1352,1959.1,1956.6,2.90695]
[1617313510911,2.90695,1958.1,1957.8,2.90695]
[1617313511151,11.4534,1957.9,1957.8,4.45945]
[1617313511342,11.1886,1957.9,1957.8,4.45945]
[1617313511711,10.1566,1957.9,1957.8,4.45945]
[1617313511911,9.7896,1957.9,1957.8,4.45945]
[1617313512216,9.7896,1957.9,1957.8,5.49085]
[1617313512429,8.1635,1957.9,1957.8,5.49085]
[1617313512641,6.5374,1957.9,1957.8,5.49085]
[1617313514116,6.5374,1957.9,1957.8,4.45945]
[1617313514617,6.5374,1957.9,1957.8,2.90695]
[1617313514918,6.5374,1957.9,1957.2,4.20515]
[1617313514919,2.90695,1957.6,1957.2,4.20515]
[1617313517019,2.90695,1957.6,1957.5,2.90695]
[1617313519024,2.90695,1957.6,1957.5,2.88695]
[1617313520225,2.90695,1957.6,1956.5,1.0299]
[1617313520437,2.90695,1957.6,1956.0,1.0365]
[1617313520650,4.15225,1957.6,1956.0,1.0365]
[1617313521056,1.2453,1957.6,1956.1,2.90695]
[1617313522346,30.0,1957.8,1956.1,2.90695]
[1617313522930,30.0,1957.8,1956.7,2.90695]
[1617313523130,32.0,1957.8,1956.7,2.90695]
[1617313523529,32.0,1957.8,1956.0,1.0365]
[1617313523731,72.9752,1957.4,1956.3,72.9752]
[1617313524755,6.5374,1957.9,1956.0,1.0365]
[1617313524948,6.5374,1957.9,1957.6,2.90695]
[1617313525145,6.5374,1957.9,1957.6,4.56255]
[1617313525332,6.5374,1957.9,1957.6,5.58125]
[1617313525533,4.5108,1957.9,1957.6,4.56255]
[1617313526934,1.1516,1957.9,1957.8,2.90695]
[1617313527133,0.2216,1957.9,1957.8,2.90695]
[1617313527334,0.2216,1957.9,1957.8,3.91505]
[1617313527738,2.90695,1958.8,1957.8,3.91505]
[1617313528941,5e-05,1958.8,1957.8,3.91505]
[1617313529138,2.90695,1959.0,1958.7,4.47315]
[1617313529739,2.85435,1957.5,1957.2,94.125]
[1617313530038,2.85435,1957.5,1953.8,14.5903]
[1617313530241,77.5147,1959.5,1956.5,2.1758]
[1617313530439,77.5147,1959.5,1956.6,2.0]
[1617313531042,77.5147,1959.5,1959.0,2.90695]
[1617313531242,1.0,1959.6,1959.0,4.10965]
[1617313532245,14.6147,1960.3,1959.0,4.10965]
[1617313532647,1.0,1959.6,1959.0,4.10965]
[1617313533044,3.15695,1959.6,1959.5,2.90695]
[1617313533346,2.90695,1959.6,1959.5,4.24605]
[1617313533755,1.89575,1959.6,1959.5,4.24605]
[1617313534245,82.8844,1960.7,1959.5,5.27685]
[1617313535246,82.8844,1960.7,1959.9,2.90695]
[1617313537147,2.90695,1960.0,1959.9,2.90695]
[1617313540855,2.84695,1960.0,1959.9,2.90695]